[Event "Titled Tuesday Blitz October 5 2021"]
[White "Salimova, Nurgyul"]
[Black "Ibrahimli, Murad"]
[WhiteFideId "2915138"]
[BlackFideId "13410229"]
[WhiteElo "2071"]
[BlackElo "2109"]
[Result "0-1"]
[Round "06"]
[TimeControl "180+1"]
[Date "2021.10.05"]
[WhiteClock "0:00:12"]
[BlackClock "0:00:08"]

1. e4 {[%clk 0:03:00]}  c5 {[%clk 0:02:58]} 2. Nf3 {[%clk 0:03:01]}  d6 {[%clk 0:02:58]} 3. d4 {[%clk 0:03:02]}  cxd4 {[%clk 0:02:59]} 4. Nxd4 {[%clk 0:03:03]}  Nf6 {[%clk 0:02:59]} 5. Nc3 {[%clk 0:03:03]}  a6 {[%clk 0:03:00]} 6. Bg5 {[%clk 0:03:03]}  e6 {[%clk 0:02:58]} 7. f4 {[%clk 0:03:03]}  Qb6 {[%clk 0:02:57]} 8. Qd2 {[%clk 0:03:02]}  h6 {[%clk 0:02:53]} 9. Bh4 {[%clk 0:03:02]}  Qxb2 {[%clk 0:02:49]} 10. Rb1 {[%clk 0:03:02]}  Qa3 {[%clk 0:02:49]} 11. e5 {[%clk 0:03:03]}  dxe5 {[%clk 0:02:47]} 12. fxe5 {[%clk 0:03:04]}  Nfd7 {[%clk 0:02:47]} 13. Ne4 {[%clk 0:03:03]}  Qxa2 {[%clk 0:02:46]} 14. Rd1 {[%clk 0:03:04]}  Qd5 {[%clk 0:02:44]} 15. Qe3 {[%clk 0:03:04]}  Qxe5 {[%clk 0:02:43]} 16. Be2 {[%clk 0:02:47]}  Bc5 {[%clk 0:02:33]} 17. Bg3 {[%clk 0:02:46]}  Bxd4 {[%clk 0:02:29]} 18. Rxd4 {[%clk 0:02:47]}  Qa5+ {[%clk 0:02:29]} 19. Rd2 {[%clk 0:02:44]}  O-O {[%clk 0:02:28]} 20. Bd6 {[%clk 0:02:44]}  Re8 {[%clk 0:02:19]} 21. g4 {[%clk 0:02:08]}  f5 {[%clk 0:01:51]} 22. Ng3 {[%clk 0:01:30]}  fxg4 {[%clk 0:01:39]} 23. O-O {[%clk 0:01:19]}  Qb6 {[%clk 0:01:37]} 24. Qxb6 {[%clk 0:01:15]}  Nxb6 {[%clk 0:01:38]} 25. Bxg4 {[%clk 0:01:16]}  Nc4 {[%clk 0:01:36]} 26. Rd4 {[%clk 0:01:08]}  Nxd6 {[%clk 0:01:34]} 27. Rxd6 {[%clk 0:01:09]}  Nc6 {[%clk 0:01:33]} 28. Ne4 {[%clk 0:01:07]}  e5 {[%clk 0:01:26]} 29. Bh5 {[%clk 0:00:59]}  Rf8 {[%clk 0:01:23]} 30. Rb1 {[%clk 0:00:49]}  Bf5 {[%clk 0:01:15]} 31. Nc5 {[%clk 0:00:45]}  Nd4 {[%clk 0:01:14]} 32. Rxb7 {[%clk 0:00:44]}  Rac8 {[%clk 0:01:04]} 33. Nd7 {[%clk 0:00:41]}  Rfd8 {[%clk 0:00:51]} 34. c3 {[%clk 0:00:41]}  Nb5 {[%clk 0:00:45]} 35. Nf6+ {[%clk 0:00:31]}  gxf6 {[%clk 0:00:33]} 36. Rxf6 {[%clk 0:00:32]}  Be4 {[%clk 0:00:22]} 37. Bf7+ {[%clk 0:00:29]}  Kg7 {[%clk 0:00:18]} 38. Rbb6 {[%clk 0:00:29]}  Rd1+ {[%clk 0:00:17]} 39. Kf2 {[%clk 0:00:29]}  Rxc3 {[%clk 0:00:17]} 40. Bh5 {[%clk 0:00:27]}  Rc2+ {[%clk 0:00:14]} 41. Kg3 {[%clk 0:00:22]}  Rd3+ {[%clk 0:00:13]} 42. Kg4 {[%clk 0:00:22]}  Rg2+ {[%clk 0:00:12]} 43. Kh4 {[%clk 0:00:22]}  Rxh2+ {[%clk 0:00:13]} 44. Kg4 {[%clk 0:00:22]}  Rg2+ {[%clk 0:00:08]} 45. Kh4 {[%clk 0:00:23]}  Rh2+ {[%clk 0:00:09]} 46. Kg4 {[%clk 0:00:23]}  Bf3+ {[%clk 0:00:07]} 47. Rxf3 {[%clk 0:00:17]}  Rxf3 {[%clk 0:00:08]} 48. Rb7+ {[%clk 0:00:17]}  Kf8 {[%clk 0:00:08]} 49. Kxf3 {[%clk 0:00:10]}  Rxh5 {[%clk 0:00:08]} 50. Rb6 {[%clk 0:00:10]}  Kg7 {[%clk 0:00:05]} 51. Rxa6 {[%clk 0:00:10]}  Rg5 {[%clk 0:00:05]} 52. Rb6 {[%clk 0:00:10]}  Nd4+ {[%clk 0:00:05]} 53. Ke4 {[%clk 0:00:11]}  Ne2 {[%clk 0:00:05]} 54. Kf3 {[%clk 0:00:11]}  Nf4 {[%clk 0:00:05]} 55. Rb7+ {[%clk 0:00:10]}  Kg6 {[%clk 0:00:05]} 56. Rb6+ {[%clk 0:00:11]}  Kf5 {[%clk 0:00:05]} 57. Rb5 {[%clk 0:00:11]}  Ne6 {[%clk 0:00:05]} 58. Rb8 {[%clk 0:00:11]}  Rg6 {[%clk 0:00:05]} 59. Rh8 {[%clk 0:00:10]}  Ng5+ {[%clk 0:00:04]} 60. Ke3 {[%clk 0:00:10]}  Rc6 {[%clk 0:00:05]} 61. Rf8+ {[%clk 0:00:11]}  Kg4 {[%clk 0:00:05]} 62. Re8 {[%clk 0:00:10]}  Rc3+ {[%clk 0:00:06]} 63. Kd2 {[%clk 0:00:10]}  Ne4+ {[%clk 0:00:06]} 64. Ke2 {[%clk 0:00:11]}  Rc5 {[%clk 0:00:04]} 65. Ke3 {[%clk 0:00:10]}  Ng5 {[%clk 0:00:05]} 66. Ra8 {[%clk 0:00:09]}  h5 {[%clk 0:00:05]} 67. Ra4+ {[%clk 0:00:10]}  e4 {[%clk 0:00:05]} 68. Ra1 {[%clk 0:00:10]}  Rc3+ {[%clk 0:00:06]} 69. Kd4 {[%clk 0:00:10]}  Rd3+ {[%clk 0:00:06]} 70. Ke5 {[%clk 0:00:11]}  h4 {[%clk 0:00:07]} 71. Rg1+ {[%clk 0:00:10]}  Rg3 {[%clk 0:00:07]} 72. Rf1 {[%clk 0:00:10]}  h3 {[%clk 0:00:07]} 73. Rf4+ {[%clk 0:00:10]}  Kh5 {[%clk 0:00:08]} 74. Rf8 {[%clk 0:00:11]}  Rf3 {[%clk 0:00:07]} 75. Rh8+ {[%clk 0:00:11]}  Kg4 {[%clk 0:00:08]} 76. Kd4 {[%clk 0:00:11]}  Rd3+ {[%clk 0:00:08]} 77. Ke5 {[%clk 0:00:12]}  e3 {[%clk 0:00:08]} 0-1


[Site "https://www.chess.com"]

[Event "Titled Tuesday Blitz October 5 2021"]
[White "Seletsky, Grigory"]
[Black "Avramidou, Anastasia"]
[WhiteFideId "14112191"]
[BlackFideId "4239873"]
[WhiteElo "2492"]
[BlackElo "2183"]
[Result "0-1"]
[Round "06"]
[TimeControl "180+1"]
[Date "2021.10.05"]
[WhiteClock "0:00:51"]
[BlackClock "0:01:02"]

1. e4 {[%clk 0:02:54]}  g6 {[%clk 0:02:59]} 2. Bc4 {[%clk 0:02:51]}  Bg7 {[%clk 0:02:59]} 3. Nc3 {[%clk 0:02:51]}  c6 {[%clk 0:02:58]} 4. f4 {[%clk 0:02:48]}  Nf6 {[%clk 0:02:47]} 5. Bb3 {[%clk 0:02:46]}  d5 {[%clk 0:02:47]} 6. d3 {[%clk 0:02:45]}  dxe4 {[%clk 0:02:47]} 7. Nxe4 {[%clk 0:02:40]}  Nxe4 {[%clk 0:02:37]} 8. dxe4 {[%clk 0:02:39]}  Qxd1+ {[%clk 0:02:38]} 9. Kxd1 {[%clk 0:02:39]}  Bg4+ {[%clk 0:02:39]} 10. Nf3 {[%clk 0:02:36]}  Na6 {[%clk 0:02:39]} 11. c3 {[%clk 0:02:28]}  Nc5 {[%clk 0:02:39]} 12. Bc2 {[%clk 0:02:26]}  O-O-O {[%clk 0:02:38]} 13. Ke2 {[%clk 0:02:24]}  Bxf3+ {[%clk 0:02:39]} 14. Kxf3 {[%clk 0:02:20]}  Rd7 {[%clk 0:02:34]} 15. Be3 {[%clk 0:02:20]}  Nd3 {[%clk 0:02:33]} 16. Bxd3 {[%clk 0:02:17]}  Rxd3 {[%clk 0:02:34]} 17. Rhd1 {[%clk 0:02:14]}  Rxd1 {[%clk 0:02:32]} 18. Rxd1 {[%clk 0:02:12]}  b6 {[%clk 0:02:33]} 19. a4 {[%clk 0:02:04]}  Rd8 {[%clk 0:02:32]} 20. Rxd8+ {[%clk 0:02:03]}  Kxd8 {[%clk 0:02:33]} 21. g4 {[%clk 0:02:02]}  e6 {[%clk 0:02:31]} 22. f5 {[%clk 0:01:53]}  exf5 {[%clk 0:02:14]} 23. exf5 {[%clk 0:01:50]}  Kd7 {[%clk 0:02:03]} 24. Ke4 {[%clk 0:01:50]}  Bf8 {[%clk 0:01:58]} 25. Bf4 {[%clk 0:01:39]}  b5 {[%clk 0:01:51]} 26. b3 {[%clk 0:01:36]}  a6 {[%clk 0:01:49]} 27. c4 {[%clk 0:01:31]}  bxa4 {[%clk 0:01:43]} 28. bxa4 {[%clk 0:01:29]}  Bd6 {[%clk 0:01:20]} 29. Be5 {[%clk 0:01:28]}  Ke7 {[%clk 0:01:12]} 30. Bxd6+ {[%clk 0:01:13]}  Kxd6 {[%clk 0:01:13]} 31. Kd4 {[%clk 0:01:14]}  c5+ {[%clk 0:01:10]} 32. Ke4 {[%clk 0:01:13]}  g5 {[%clk 0:01:05]} 33. h3 {[%clk 0:01:08]}  a5 {[%clk 0:00:59]} 34. Kf3 {[%clk 0:01:00]}  Ke5 {[%clk 0:00:58]} 35. Ke3 {[%clk 0:00:59]}  f6 {[%clk 0:00:57]} 36. Kf3 {[%clk 0:00:57]}  Kd4 {[%clk 0:00:57]} 37. h4 {[%clk 0:00:57]}  h6 {[%clk 0:00:56]} 38. hxg5 {[%clk 0:00:56]}  hxg5 {[%clk 0:00:57]} 39. Ke2 {[%clk 0:00:56]}  Kxc4 {[%clk 0:00:57]} 40. Ke3 {[%clk 0:00:55]}  Kb4 {[%clk 0:00:57]} 41. Ke4 {[%clk 0:00:54]}  c4 {[%clk 0:00:57]} 42. Kd5 {[%clk 0:00:55]}  c3 {[%clk 0:00:58]} 43. Ke6 {[%clk 0:00:55]}  c2 {[%clk 0:00:59]} 44. Kxf6 {[%clk 0:00:56]}  c1=Q {[%clk 0:00:59]} 45. Kg6 {[%clk 0:00:55]}  Qf4 {[%clk 0:00:59]} 46. f6 {[%clk 0:00:56]}  Qxg4 {[%clk 0:01:00]} 47. f7 {[%clk 0:00:56]}  Qf4 {[%clk 0:01:00]} 48. Kg7 {[%clk 0:00:54]}  g4 {[%clk 0:01:01]} 49. f8=B+ {[%clk 0:00:52]}  Qxf8+ {[%clk 0:01:01]} 50. Kxf8 {[%clk 0:00:51]}  g3 {[%clk 0:01:02]} 0-1


[Site "https://www.chess.com"]

[Event "Titled Tuesday Blitz October 5 2021"]
[White "Silvestre, Christian"]
[Black "Cunha, Lucas Aguiar"]
[WhiteFideId "30956269"]
[BlackFideId "2125404"]
[WhiteElo "2502"]
[BlackElo "2361"]
[Result "1/2-1/2"]
[Round "06"]
[TimeControl "180+1"]
[Date "2021.10.05"]
[WhiteClock "0:00:11"]
[BlackClock "0:00:07"]

1. Nf3 {[%clk 0:03:00]}  d5 {[%clk 0:03:00]} 2. b3 {[%clk 0:03:01]}  c5 {[%clk 0:02:59]} 3. e3 {[%clk 0:03:01]}  a6 {[%clk 0:02:59]} 4. c4 {[%clk 0:03:00]}  Nc6 {[%clk 0:02:59]} 5. cxd5 {[%clk 0:03:00]}  Qxd5 {[%clk 0:02:59]} 6. Bb2 {[%clk 0:03:00]}  Bg4 {[%clk 0:02:58]} 7. Be2 {[%clk 0:02:59]}  Nf6 {[%clk 0:02:57]} 8. h3 {[%clk 0:02:56]}  Bh5 {[%clk 0:02:56]} 9. Nc3 {[%clk 0:02:55]}  Qd6 {[%clk 0:02:56]} 10. d3 {[%clk 0:02:54]}  Rd8 {[%clk 0:02:55]} 11. O-O {[%clk 0:02:45]}  e5 {[%clk 0:02:41]} 12. Ne4 {[%clk 0:02:31]}  Nxe4 {[%clk 0:02:41]} 13. dxe4 {[%clk 0:02:32]}  Qc7 {[%clk 0:02:41]} 14. Qc1 {[%clk 0:02:23]}  Bg6 {[%clk 0:02:37]} 15. Qc2 {[%clk 0:01:53]}  Be7 {[%clk 0:02:27]} 16. a3 {[%clk 0:01:50]}  O-O {[%clk 0:02:27]} 17. Rfd1 {[%clk 0:01:49]}  Rc8 {[%clk 0:02:23]} 18. Rd5 {[%clk 0:01:46]}  f6 {[%clk 0:02:20]} 19. Rad1 {[%clk 0:01:44]}  Nb8 {[%clk 0:01:59]} 20. Bc4 {[%clk 0:01:20]}  Kh8 {[%clk 0:01:57]} 21. a4 {[%clk 0:01:15]}  Be8 {[%clk 0:01:50]} 22. Nh4 {[%clk 0:01:13]}  b5 {[%clk 0:01:41]} 23. axb5 {[%clk 0:01:10]}  axb5 {[%clk 0:01:42]} 24. Bf1 {[%clk 0:01:08]}  g6 {[%clk 0:01:39]} 25. f4 {[%clk 0:01:05]}  Bf7 {[%clk 0:01:20]} 26. fxe5 {[%clk 0:01:02]}  Bxd5 {[%clk 0:01:20]} 27. exd5 {[%clk 0:00:32]}  fxe5 {[%clk 0:01:11]} 28. Nxg6+ {[%clk 0:00:30]}  hxg6 {[%clk 0:01:08]} 29. d6 {[%clk 0:00:27]}  Bxd6 {[%clk 0:00:56]} 30. Qxg6 {[%clk 0:00:25]}  Rcd8 {[%clk 0:00:56]} 31. Bd3 {[%clk 0:00:13]}  c4 {[%clk 0:00:33]} 32. Qh5+ {[%clk 0:00:12]}  Kg8 {[%clk 0:00:31]} 33. bxc4 {[%clk 0:00:11]}  b4 {[%clk 0:00:30]} 34. c5 {[%clk 0:00:11]}  Qf7 {[%clk 0:00:05]} 35. Bc4 {[%clk 0:00:10]}  Qxc4 {[%clk 0:00:05]} 36. Qg6+ {[%clk 0:00:09]}  Kh8 {[%clk 0:00:05]} 37. Qh6+ {[%clk 0:00:10]}  Kg8 {[%clk 0:00:06]} 38. Qg6+ {[%clk 0:00:10]}  Kh8 {[%clk 0:00:07]} 39. Qh6+ {[%clk 0:00:11]}  Kg8 {[%clk 0:00:07]} 40. Qg6+ {[%clk 0:00:11]} 1/2-1/2


[Site "https://www.chess.com"]

[Event "Titled Tuesday Blitz October 5 2021"]
[White "Stojanovski, Sandi"]
[Black "Shkapenko, Pavel"]
[WhiteFideId "1403249"]
[BlackFideId "4151933"]
[WhiteElo "2286"]
[BlackElo "2386"]
[Result "1/2-1/2"]
[Round "06"]
[TimeControl "180+1"]
[Date "2021.10.05"]
[WhiteClock "0:00:02"]
[BlackClock "0:00:16"]

1. c4 {[%clk 0:02:54]}  e6 {[%clk 0:02:59]} 2. Nf3 {[%clk 0:02:54]}  d5 {[%clk 0:03:00]} 3. cxd5 {[%clk 0:02:53]}  exd5 {[%clk 0:03:01]} 4. d4 {[%clk 0:02:53]}  g6 {[%clk 0:03:02]} 5. Bf4 {[%clk 0:02:45]}  Bg7 {[%clk 0:03:01]} 6. e3 {[%clk 0:02:44]}  Ne7 {[%clk 0:03:01]} 7. Bd3 {[%clk 0:02:21]}  O-O {[%clk 0:02:58]} 8. O-O {[%clk 0:02:21]}  c6 {[%clk 0:02:54]} 9. Nc3 {[%clk 0:02:19]}  Bf5 {[%clk 0:02:54]} 10. b4 {[%clk 0:02:17]}  Bxd3 {[%clk 0:02:50]} 11. Qxd3 {[%clk 0:02:16]}  Nd7 {[%clk 0:02:49]} 12. b5 {[%clk 0:01:59]}  c5 {[%clk 0:02:47]} 13. Bd6 {[%clk 0:01:54]}  c4 {[%clk 0:02:45]} 14. Bxe7 {[%clk 0:01:40]}  Qxe7 {[%clk 0:02:07]} 15. Nxd5 {[%clk 0:01:39]}  cxd3 {[%clk 0:02:02]} 16. Nxe7+ {[%clk 0:01:38]}  Kh8 {[%clk 0:02:02]} 17. Nd5 {[%clk 0:01:24]}  Rac8 {[%clk 0:01:58]} 18. Rac1 {[%clk 0:01:20]}  Rfd8 {[%clk 0:01:53]} 19. Nf4 {[%clk 0:01:19]}  Bf8 {[%clk 0:01:50]} 20. Nxd3 {[%clk 0:01:16]}  Ba3 {[%clk 0:01:50]} 21. Rxc8 {[%clk 0:01:14]}  Rxc8 {[%clk 0:01:50]} 22. Ng5 {[%clk 0:00:46]}  Kg7 {[%clk 0:01:41]} 23. f4 {[%clk 0:00:45]}  Rc3 {[%clk 0:01:33]} 24. Ne5 {[%clk 0:00:44]}  Nb6 {[%clk 0:01:12]} 25. Ngxf7 {[%clk 0:00:29]}  Rxe3 {[%clk 0:01:11]} 26. f5 {[%clk 0:00:27]}  gxf5 {[%clk 0:01:09]} 27. Rxf5 {[%clk 0:00:28]}  Nd5 {[%clk 0:00:38]} 28. Nf3 {[%clk 0:00:18]}  Nc3 {[%clk 0:00:33]} 29. h4 {[%clk 0:00:17]}  Re2 {[%clk 0:00:31]} 30. N7g5 {[%clk 0:00:11]}  h6 {[%clk 0:00:29]} 31. Rf7+ {[%clk 0:00:09]}  Kg6 {[%clk 0:00:27]} 32. Ne5+ {[%clk 0:00:05]}  Rxe5 {[%clk 0:00:24]} 33. dxe5 {[%clk 0:00:06]}  hxg5 {[%clk 0:00:24]} 34. Rxb7 {[%clk 0:00:05]}  gxh4 {[%clk 0:00:23]} 35. Kh2 {[%clk 0:00:04]}  Bc5 {[%clk 0:00:22]} 36. Kh3 {[%clk 0:00:04]}  Kf5 {[%clk 0:00:21]} 37. a4 {[%clk 0:00:01]}  Kxe5 {[%clk 0:00:20]} 38. Kxh4 {[%clk 0:00:02]}  Nxa4 {[%clk 0:00:19]} 39. g4 {[%clk 0:00:02]}  Nc3 {[%clk 0:00:19]} 40. g5 {[%clk 0:00:02]}  Nd5 {[%clk 0:00:18]} 41. g6 {[%clk 0:00:02]}  Be7+ {[%clk 0:00:17]} 42. Kh5 {[%clk 0:00:02]}  Nf6+ {[%clk 0:00:16]} 43. Kh6 {[%clk 0:00:01]}  Ng4+ {[%clk 0:00:16]} 44. Kh7 {[%clk 0:00:01]}  Nf6+ {[%clk 0:00:16]} 45. Kh6 {[%clk 0:00:02]}  Ng4+ {[%clk 0:00:16]} 46. Kh7 {[%clk 0:00:02]}  Nf6+ {[%clk 0:00:16]} 47. Kh6 {[%clk 0:00:02]} 1/2-1/2


[Site "https://www.chess.com"]

[Event "Titled Tuesday Blitz October 5 2021"]
[White "Stoyanov, Tsvetan"]
[Black "Mekhitarian, Krikor Sevag"]
[WhiteFideId "2917173"]
[BlackFideId "2107660"]
[WhiteElo "2191"]
[BlackElo "2598"]
[Result "0-1"]
[Round "06"]
[TimeControl "180+1"]
[Date "2021.10.05"]
[WhiteClock "0:00:12"]
[BlackClock "0:00:17"]

1. e4 {[%clk 0:03:00]}  c5 {[%clk 0:02:59]} 2. Nf3 {[%clk 0:03:01]}  e6 {[%clk 0:02:53]} 3. d4 {[%clk 0:03:01]}  cxd4 {[%clk 0:02:53]} 4. Nxd4 {[%clk 0:03:01]}  Nc6 {[%clk 0:02:52]} 5. Nc3 {[%clk 0:03:00]}  a6 {[%clk 0:02:52]} 6. Be3 {[%clk 0:02:54]}  Nf6 {[%clk 0:02:51]} 7. a3 {[%clk 0:02:53]}  Qc7 {[%clk 0:02:35]} 8. Be2 {[%clk 0:02:49]}  Be7 {[%clk 0:02:34]} 9. O-O {[%clk 0:02:48]}  O-O {[%clk 0:02:33]} 10. f4 {[%clk 0:02:49]}  d6 {[%clk 0:02:32]} 11. Qe1 {[%clk 0:02:47]}  Bd7 {[%clk 0:02:32]} 12. Qg3 {[%clk 0:02:45]}  Nxd4 {[%clk 0:02:28]} 13. Bxd4 {[%clk 0:02:46]}  Bc6 {[%clk 0:02:28]} 14. Bd3 {[%clk 0:02:44]}  b5 {[%clk 0:02:09]} 15. Kh1 {[%clk 0:02:43]}  Qb7 {[%clk 0:02:08]} 16. Rae1 {[%clk 0:02:41]}  b4 {[%clk 0:02:05]} 17. axb4 {[%clk 0:02:41]}  Qxb4 {[%clk 0:02:03]} 18. Bxf6 {[%clk 0:02:36]}  Bxf6 {[%clk 0:02:00]} 19. e5 {[%clk 0:02:37]}  dxe5 {[%clk 0:01:56]} 20. fxe5 {[%clk 0:02:38]}  Be7 {[%clk 0:01:55]} 21. Ne4 {[%clk 0:02:10]}  Bxe4 {[%clk 0:01:22]} 22. Rxe4 {[%clk 0:02:01]}  Qxb2 {[%clk 0:01:22]} 23. Rg4 {[%clk 0:02:01]}  g6 {[%clk 0:01:17]} 24. h4 {[%clk 0:02:01]}  Kh8 {[%clk 0:00:58]} 25. h5 {[%clk 0:01:55]}  Rad8 {[%clk 0:00:54]} 26. Kh2 {[%clk 0:01:19]}  Rd5 {[%clk 0:00:36]} 27. Re4 {[%clk 0:01:13]}  Rd4 {[%clk 0:00:28]} 28. hxg6 {[%clk 0:01:01]}  hxg6 {[%clk 0:00:19]} 29. Rff4 {[%clk 0:00:40]}  Rxe4 {[%clk 0:00:19]} 30. Bxe4 {[%clk 0:00:37]}  Kg7 {[%clk 0:00:19]} 31. Rf1 {[%clk 0:00:13]}  Rh8+ {[%clk 0:00:17]} 32. Kg1 {[%clk 0:00:12]}  Bc5+ {[%clk 0:00:17]} 0-1


[Site "https://www.chess.com"]

[Event "Titled Tuesday Blitz October 5 2021"]
[White "Stribuk, Artiom"]
[Black "Melian, Juan Sebastian"]
[WhiteFideId "13515659"]
[BlackFideId "3706575"]
[WhiteElo "2224"]
[BlackElo "1672"]
[Result "1-0"]
[Round "06"]
[TimeControl "180+1"]
[Date "2021.10.05"]
[WhiteClock "0:00:07"]
[BlackClock "0:00:04"]

1. d4 {[%clk 0:03:00]}  Nf6 {[%clk 0:02:59]} 2. c4 {[%clk 0:03:01]}  e6 {[%clk 0:02:59]} 3. Nc3 {[%clk 0:02:57]}  Bb4 {[%clk 0:02:57]} 4. a3 {[%clk 0:02:57]}  Bxc3+ {[%clk 0:02:54]} 5. bxc3 {[%clk 0:02:58]}  O-O {[%clk 0:02:53]} 6. e3 {[%clk 0:02:58]}  b6 {[%clk 0:02:52]} 7. Bd3 {[%clk 0:02:46]}  Bb7 {[%clk 0:02:49]} 8. f3 {[%clk 0:02:18]}  d5 {[%clk 0:02:48]} 9. Ne2 {[%clk 0:02:15]}  c5 {[%clk 0:02:41]} 10. O-O {[%clk 0:02:12]}  dxc4 {[%clk 0:02:04]} 11. Bxc4 {[%clk 0:02:10]}  Ba6 {[%clk 0:02:05]} 12. Bxa6 {[%clk 0:02:03]}  Nxa6 {[%clk 0:02:06]} 13. e4 {[%clk 0:01:55]}  Qc8 {[%clk 0:01:34]} 14. Be3 {[%clk 0:01:49]}  Qc6 {[%clk 0:01:20]} 15. Qb3 {[%clk 0:01:16]}  Rac8 {[%clk 0:01:16]} 16. Rfc1 {[%clk 0:01:10]}  h6 {[%clk 0:01:15]} 17. a4 {[%clk 0:00:55]}  Rfd8 {[%clk 0:00:55]} 18. Qb5 {[%clk 0:00:53]}  Qb7 {[%clk 0:00:48]} 19. a5 {[%clk 0:00:41]}  Nc7 {[%clk 0:00:47]} 20. Qb2 {[%clk 0:00:41]}  Qc6 {[%clk 0:00:48]} 21. axb6 {[%clk 0:00:38]}  axb6 {[%clk 0:00:49]} 22. Rcb1 {[%clk 0:00:39]}  Rb8 {[%clk 0:00:38]} 23. Ra7 {[%clk 0:00:38]}  Nd7 {[%clk 0:00:34]} 24. Bf4 {[%clk 0:00:35]}  Rb7 {[%clk 0:00:30]} 25. Rxb7 {[%clk 0:00:27]}  Qxb7 {[%clk 0:00:31]} 26. Be3 {[%clk 0:00:22]}  Qa8 {[%clk 0:00:12]} 27. Kf2 {[%clk 0:00:20]}  Rb8 {[%clk 0:00:08]} 28. Ra1 {[%clk 0:00:20]}  Qc6 {[%clk 0:00:08]} 29. Ra7 {[%clk 0:00:20]}  Rb7 {[%clk 0:00:08]} 30. Rxb7 {[%clk 0:00:19]}  Qxb7 {[%clk 0:00:09]} 31. dxc5 {[%clk 0:00:19]}  b5 {[%clk 0:00:09]} 32. Nd4 {[%clk 0:00:16]}  Nxc5 {[%clk 0:00:09]} 33. Ke2 {[%clk 0:00:13]}  Na4 {[%clk 0:00:08]} 34. Qb4 {[%clk 0:00:12]}  Qa6 {[%clk 0:00:07]} 35. Nb3 {[%clk 0:00:09]}  Qc6 {[%clk 0:00:06]} 36. Bd4 {[%clk 0:00:08]}  Kh7 {[%clk 0:00:06]} 37. Nc5 {[%clk 0:00:08]}  Nxc5 {[%clk 0:00:05]} 38. Qxc5 {[%clk 0:00:09]}  Qxc5 {[%clk 0:00:04]} 39. Bxc5 {[%clk 0:00:10]}  Na6 {[%clk 0:00:05]} 40. Bf8 {[%clk 0:00:09]}  Kg8 {[%clk 0:00:05]} 41. Ba3 {[%clk 0:00:09]}  f6 {[%clk 0:00:05]} 42. Kd3 {[%clk 0:00:09]}  Kf7 {[%clk 0:00:05]} 43. f4 {[%clk 0:00:10]}  g6 {[%clk 0:00:05]} 44. Kd4 {[%clk 0:00:10]}  Ke8 {[%clk 0:00:04]} 45. g4 {[%clk 0:00:10]}  Kd7 {[%clk 0:00:05]} 46. h4 {[%clk 0:00:10]}  h5 {[%clk 0:00:05]} 47. f5 {[%clk 0:00:07]}  exf5 {[%clk 0:00:05]} 48. exf5 {[%clk 0:00:06]}  hxg4 {[%clk 0:00:02]} 49. fxg6 {[%clk 0:00:07]}  Ke6 {[%clk 0:00:02]} 50. Ke4 {[%clk 0:00:06]}  f5+ {[%clk 0:00:02]} 51. Kf4 {[%clk 0:00:06]}  Kf6 {[%clk 0:00:03]} 52. h5 {[%clk 0:00:06]}  Nc7 {[%clk 0:00:03]} 53. c4 {[%clk 0:00:04]}  Ne6+ {[%clk 0:00:04]} 54. Kg3 {[%clk 0:00:04]}  Kg5 {[%clk 0:00:03]} 55. cxb5 {[%clk 0:00:04]}  Kxh5 {[%clk 0:00:03]} 56. b6 {[%clk 0:00:05]}  Nd8 {[%clk 0:00:03]} 57. g7 {[%clk 0:00:04]}  f4+ {[%clk 0:00:03]} 58. Kxf4 {[%clk 0:00:03]}  Ne6+ {[%clk 0:00:03]} 59. Kg3 {[%clk 0:00:04]}  Nxg7 {[%clk 0:00:04]} 60. b7 {[%clk 0:00:04]}  Nf5+ {[%clk 0:00:05]} 61. Kh2 {[%clk 0:00:04]}  g3+ {[%clk 0:00:04]} 62. Kg1 {[%clk 0:00:04]}  Kg4 {[%clk 0:00:04]} 63. b8=Q {[%clk 0:00:05]}  Kf3 {[%clk 0:00:04]} 64. Qf8 {[%clk 0:00:05]}  Kg4 {[%clk 0:00:04]} 65. Bd6 {[%clk 0:00:05]}  Nh4 {[%clk 0:00:05]} 66. Bxg3 {[%clk 0:00:06]}  Kxg3 {[%clk 0:00:05]} 67. Qg7+ {[%clk 0:00:06]}  Kh3 {[%clk 0:00:04]} 68. Kf1 {[%clk 0:00:07]} 1-0


[Site "https://www.chess.com"]

[Event "Titled Tuesday Blitz October 5 2021"]
[White "Tasev, Dejan"]
[Black "Jary, Sergey"]
[WhiteFideId "936618"]
[BlackFideId "14110350"]
[WhiteElo "2253"]
[BlackElo "2260"]
[Result "1-0"]
[Round "06"]
[TimeControl "180+1"]
[Date "2021.10.05"]
[WhiteClock "0:00:07"]
[BlackClock "0:00:01"]

1. e4 {[%clk 0:02:57]}  c5 {[%clk 0:03:00]} 2. Nf3 {[%clk 0:02:55]}  Nc6 {[%clk 0:03:00]} 3. Nc3 {[%clk 0:02:54]}  g6 {[%clk 0:02:59]} 4. d4 {[%clk 0:02:54]}  cxd4 {[%clk 0:02:59]} 5. Nxd4 {[%clk 0:02:54]}  Bg7 {[%clk 0:03:00]} 6. Be3 {[%clk 0:02:54]}  Nf6 {[%clk 0:03:00]} 7. Bc4 {[%clk 0:02:54]}  O-O {[%clk 0:02:59]} 8. Bb3 {[%clk 0:02:54]}  a5 {[%clk 0:02:57]} 9. O-O {[%clk 0:02:54]}  a4 {[%clk 0:02:57]} 10. Nxa4 {[%clk 0:02:53]}  Nxe4 {[%clk 0:02:57]} 11. Nb5 {[%clk 0:02:54]}  d6 {[%clk 0:02:52]} 12. f3 {[%clk 0:02:46]}  Nc5 {[%clk 0:02:35]} 13. Nxc5 {[%clk 0:02:36]}  dxc5 {[%clk 0:02:35]} 14. Qxd8 {[%clk 0:02:17]}  Rxd8 {[%clk 0:02:34]} 15. Rad1 {[%clk 0:02:16]}  b6 {[%clk 0:02:17]} 16. Rxd8+ {[%clk 0:02:06]}  Nxd8 {[%clk 0:02:17]} 17. Nc7 {[%clk 0:02:00]}  Ra7 {[%clk 0:02:12]} 18. Nd5 {[%clk 0:01:58]}  Nc6 {[%clk 0:01:57]} 19. Nxb6 {[%clk 0:01:55]}  Bf5 {[%clk 0:01:52]} 20. c3 {[%clk 0:01:46]}  Ne5 {[%clk 0:01:42]} 21. Rd1 {[%clk 0:01:34]}  h5 {[%clk 0:01:29]} 22. Bxc5 {[%clk 0:01:15]}  Nd3 {[%clk 0:01:27]} 23. Be3 {[%clk 0:01:06]}  Nxb2 {[%clk 0:01:20]} 24. Rd8+ {[%clk 0:01:05]}  Kh7 {[%clk 0:01:19]} 25. Bxf7 {[%clk 0:01:03]}  Bxc3 {[%clk 0:01:16]} 26. Bg8+ {[%clk 0:00:44]}  Kg7 {[%clk 0:01:15]} 27. Bb3 {[%clk 0:00:44]}  Bf6 {[%clk 0:01:06]} 28. Nd5 {[%clk 0:00:40]}  Ra5 {[%clk 0:00:51]} 29. Nxf6 {[%clk 0:00:33]}  exf6 {[%clk 0:00:51]} 30. Bd4 {[%clk 0:00:32]}  Nd3 {[%clk 0:00:47]} 31. Rg8+ {[%clk 0:00:30]}  Kh7 {[%clk 0:00:46]} 32. Bxf6 {[%clk 0:00:30]}  g5 {[%clk 0:00:41]} 33. Bf7 {[%clk 0:00:27]}  Bg6 {[%clk 0:00:17]} 34. Rxg6 {[%clk 0:00:25]}  Ra6 {[%clk 0:00:09]} 35. Rg7+ {[%clk 0:00:18]}  Kh6 {[%clk 0:00:08]} 36. Bd4 {[%clk 0:00:08]}  Nf4 {[%clk 0:00:07]} 37. Ba1 {[%clk 0:00:04]}  Rd6 {[%clk 0:00:07]} 38. g4 {[%clk 0:00:04]}  Rd1+ {[%clk 0:00:07]} 39. Kf2 {[%clk 0:00:05]}  Rxa1 {[%clk 0:00:07]} 40. Rg8 {[%clk 0:00:06]}  Rxa2+ {[%clk 0:00:07]} 41. Ke3 {[%clk 0:00:06]}  Re2+ {[%clk 0:00:07]} 42. Kd4 {[%clk 0:00:06]}  Kh7 {[%clk 0:00:07]} 43. Rxg5 {[%clk 0:00:06]}  Rxh2 {[%clk 0:00:05]} 44. gxh5 {[%clk 0:00:06]}  Rf2 {[%clk 0:00:04]} 45. Ke3 {[%clk 0:00:06]}  Nh3 {[%clk 0:00:03]} 46. Rg3 {[%clk 0:00:06]}  Rh2 {[%clk 0:00:02]} 47. Be6 {[%clk 0:00:06]}  Ng1 {[%clk 0:00:02]} 48. Bf5+ {[%clk 0:00:06]}  Kh6 {[%clk 0:00:01]} 49. Rxg1 {[%clk 0:00:07]}  Rxh5 {[%clk 0:00:01]} 50. Be4 {[%clk 0:00:06]}  Rh2 {[%clk 0:00:02]} 51. Rg6+ {[%clk 0:00:06]}  Kh5 {[%clk 0:00:01]} 52. Rg7 {[%clk 0:00:07]}  Ra2 {[%clk 0:00:01]} 53. Kf4 {[%clk 0:00:07]} 1-0


[Site "https://www.chess.com"]